bitfinex-derivatives/quotes_SOLF0:USTF0_20250924
["timestamp","ask_amount","ask_price","bid_price","bid_amount"]
[1758686467513,7.3,208.13,208.01,67.2758]
[1758686467714,7.3,208.21,208.03,67.2694]
[1758686467912,7.3,208.21,208.06,67.2602]
[1758686468119,7.3,208.21,208.07,67.2561]
[1758686468318,7.3,208.21,208.08,67.2536]
[1758686468517,7.3,208.21,208.09,7.33]
[1758686468713,7.3,208.21,208.09,11.6531]
[1758686469016,7.3,208.21,208.09,7.33]
[1758686469222,7.3,208.18,208.02,11.6546]
[1758686469522,7.3,208.18,208.02,7.33]
[1758686469716,67.2288,208.16,208.02,7.33]
[1758686469922,7.3,208.15,208.02,7.33]
[1758686470316,7.3,208.11,207.98,4.3254]
[1758686471022,7.3,208.11,207.97,7.33]
[1758686471222,7.3,208.11,207.97,74.6176]
[1758686471424,7.3,208.11,207.97,7.33]
[1758686472225,11.6229,208.11,207.97,11.6556]
[1758686472424,7.3,208.11,207.98,67.2857]
[1758686472822,7.3,208.11,208.02,7.33]
[1758686473823,7.3,208.11,207.97,81.11]
[1758686474224,4.3237,208.07,207.97,7.67]
[1758686474431,7.97,208.03,207.9,7.67]
[1758686475237,67.275,208.02,207.9,7.67]
[1758686475439,7.97,207.98,207.83,7.67]
[1758686475828,75.2564,207.98,207.83,7.67]
[1758686476032,67.2897,207.97,207.83,7.67]
[1758686476335,7.97,207.95,207.83,7.67]
[1758686477135,7.97,207.95,207.83,11.9984]
[1758686477332,7.97,207.95,207.83,7.67]
[1758686477536,7.97,207.93,207.76,7.67]
[1758686477738,13.13413427,207.93,207.76,7.67]
[1758686477941,67.3066,207.92,207.76,7.67]
[1758686478125,76.11023427,207.93,207.76,7.67]
[1758686478434,7.97,207.9,207.76,7.67]
[1758686478829,4.3274,207.89,207.76,7.67]
[1758686479235,67.3249,207.86,207.66,7.67]
[1758686479538,4.3289,207.82,207.66,7.67]
[1758686479735,7.97,207.83,207.66,75.0568]
[1758686480035,7.97,207.88,207.72,7.67]
[1758686480431,7.97,207.88,207.74,67.3632]
[1758686480632,8.80743427,207.93,207.8,7.67]
[1758686480835,0.83743427,207.93,207.82,7.67]
[1758686481035,0.83743427,207.93,207.83,67.3342]
[1758686481240,7.97,208.03,207.87,7.67]
[1758686481542,75.2404,208.03,207.87,7.67]
[1758686481741,67.2829,207.99,207.78,7.67]
[1758686481936,7.97,207.98,207.87,67.3215]
[1758686482139,0.83717238,208.0,207.89,71.6418]
[1758686482340,7.97,208.09,207.91,67.3087]
[1758686482648,7.97,208.09,207.93,7.67]
[1758686482834,0.83689052,208.08,207.93,7.67]
[1758686483243,0.83689052,208.08,207.95,7.67]
[1758686483943,0.83689052,208.08,207.95,79.2906]
[1758686484243,4.3226,208.12,207.96,7.76]
[1758686484648,0.83672954,208.12,207.97,71.6141]
[1758686484839,0.83672954,208.12,207.98,7.76]
[1758686485242,67.2544,208.08,207.87,7.76]
[1758686485435,67.2636,208.05,207.89,7.76]
[1758686486044,67.2738,208.02,207.89,7.76]
[1758686486242,7.57,208.0,207.89,7.76]
[1758686486546,67.2636,208.05,207.89,7.76]
[1758686486547,67.2733,208.02,207.89,7.76]
[1758686486748,67.2766,208.01,207.89,7.76]
[1758686487340,67.2929,207.96,207.83,22.88]
[1758686487550,67.2929,207.96,207.83,30.64]
[1758686487741,4.3259,207.96,207.83,30.64]
[1758686487952,67.2851,207.99,207.84,7.76]
[1758686487953,7.57,207.99,207.84,7.76]
[1758686488240,67.2927,207.96,207.84,7.76]
[1758686488444,74.8701,207.94,207.84,7.76]
[1758686488638,74.8701,207.94,207.76,363.5]
[1758686488639,67.3027,207.93,207.76,363.5]
[1758686488838,67.3093,207.91,207.78,7.76]
[1758686489046,71.6364,207.91,207.78,7.76]
[1758686489846,7.57,207.94,207.78,7.76]
[1758686491045,67.2868,207.98,207.81,7.76]
[1758686491246,67.2893,207.97,207.81,7.76]
[1758686491446,74.8593,207.97,207.81,7.76]
[1758686491646,4.3264,207.94,207.81,7.76]
[1758686492148,71.6328,207.92,207.81,7.76]
[1758686492545,4.3273,207.9,207.81,7.76]
[1758686492752,71.6397,207.9,207.81,7.76]
[1758686493051,7.57,207.93,207.81,7.76]
[1758686494044,4.326,207.96,207.81,7.76]
[1758686494243,71.6186,207.96,207.81,7.76]
[1758686494552,4.3264,207.94,207.81,7.76]
[1758686494953,67.2998,207.94,207.81,7.76]
[1758686495248,67.2926,207.96,207.81,7.76]
[1758686495249,7.57,207.93,207.81,7.76]
[1758686495642,67.2834,207.99,207.81,7.76]
[1758686495842,4.326,207.96,207.82,7.76]
[1758686496251,67.2991,207.94,207.82,7.76]
[1758686496551,74.8755,207.92,207.82,7.76]
[1758686496849,67.3104,207.91,207.78,113.42]
[1758686497054,11.8977,207.88,207.77,7.76]
[1758686497352,7.57,207.88,207.77,7.76]
[1758686497542,4.3271,207.91,207.77,7.76]
[1758686497742,12.70127307,208.11,207.87,7.76]
[1758686497943,7.57,208.09,207.91,7.76]
[1758686498149,67.2639,208.05,207.91,23.66]
[1758686498447,67.2704,208.03,207.92,4.50803571]
[1758686498645,67.2704,208.03,207.93,4.50803571]
[1758686498849,4.3248,208.02,207.94,4.50803571]
[1758686499050,4.3248,208.02,207.95,4.50803571]
[1758686499250,4.3248,208.02,207.91,7.76]
[1758686499452,7.57,208.0,207.89,58.9]
[1758686499652,74.853,207.99,207.85,7.76]
[1758686499845,67.2899,207.97,207.85,7.76]
[1758686500849,4.3262,207.95,207.85,7.76]
[1758686501450,11.8962,207.95,207.85,7.76]
[1758686503253,11.8962,207.95,207.82,4.3288]
[1758686504260,11.8962,207.95,207.81,93.98]
[1758686505152,67.3072,207.92,207.81,7.76]
[1758686505559,67.3191,207.88,207.77,127.08]
[1758686505954,7.57,207.86,207.69,7.76]
[1758686506151,4.3287,207.83,207.72,7.76]
[1758686506657,7.57,207.86,207.72,7.76]
[1758686506860,67.3418,207.81,207.72,7.76]
[1758686507158,7.57,207.82,207.72,7.76]
[1758686507657,4.3279,207.87,207.73,4.3305]
[1758686507859,74.8914,207.88,207.72,7.76]
[1758686508060,7.57,207.88,207.76,7.76]
[1758686508259,67.3057,207.92,207.76,7.76]
[1758686508956,7.57,207.91,207.74,67.363]
[1758686509161,7.57,207.91,207.77,7.76]
[1758686509358,4.3272,207.9,207.77,7.76]
[1758686509561,7.57,207.89,207.77,7.76]
[1758686510261,7.57,207.95,207.79,7.76]
[1758686510863,4.3267,207.93,207.79,12.0894]
[1758686511461,4.327,207.91,207.79,7.76]
[1758686511662,74.8806,207.91,207.79,7.76]
[1758686511859,7.57,207.91,207.79,7.76]
[1758686512465,7.57,207.91,207.74,75.8]
[1758686512666,7.57,207.88,207.74,83.56]
[1758686512863,11.8977,207.88,207.75,4.3302]
[1758686513066,67.3217,207.87,207.74,83.56]
[1758686513664,7.57,207.88,207.74,83.56]
[1758686513861,7.57,207.88,207.75,7.44]
[1758686514961,67.3057,207.92,207.79,7.44]
[1758686515168,7.53,207.91,207.79,7.44]
[1758686515674,67.3155,207.89,207.79,7.44]
[1758686516469,67.3252,207.86,207.74,7.44]
[1758686516674,67.3319,207.84,207.74,7.44]
[1758686517076,4.3291,207.81,207.69,7.44]
[1758686517472,7.53,207.81,207.69,7.44]
[1758686517673,7.53,207.81,207.64,11.7725]
[1758686517674,4.33,207.77,207.64,11.7725]
[1758686517983,67.3573,207.76,207.64,7.44]
[1758686519277,7.53,207.77,207.64,7.44]
[1758686519477,74.8687,207.82,207.64,7.44]
[1758686519672,7.53,207.82,207.66,7.44]
[1758686519870,11.859,207.82,207.69,7.44]
[1758686520074,7.53,207.82,207.69,7.44]
[1758686520276,7.53,207.82,207.7,4.3313]
[1758686520671,7.53,207.87,207.71,7.44]
[1758686521070,7.53,207.87,207.74,7.44]
[1758686521276,7.53,207.93,207.77,67.3538]
[1758686521472,7.53,207.93,207.81,4.3289]
[1758686521676,7.53,207.93,207.79,7.44]
[1758686521871,0.67160272,207.97,207.83,7.44]
[1758686522076,4.99730272,207.97,207.84,4.3283]
[1758686522272,3.39727272,208.05,207.86,7.44]
[1758686522474,7.53,208.12,207.97,67.2885]
[1758686522677,7.53,208.12,208.0,67.278]
[1758686522880,7.53,208.18,208.02,7.44]
[1758686523075,0.83658874,208.17,208.02,7.44]
[1758686523584,7.53,208.13,208.02,7.44]
[1758686523883,67.2413,208.12,208.02,7.44]
[1758686524079,7.53,208.07,207.95,7.44]
[1758686524787,67.2709,208.03,207.9,7.44]
[1758686525279,7.53,208.07,207.91,7.44]
[1758686525687,67.2615,208.06,207.91,7.44]
[1758686525879,71.5854,208.06,207.91,7.44]
[1758686526678,7.53,208.07,207.91,7.44]
[1758686527486,7.53,208.12,207.99,74.7223]
[1758686527685,8.36658874,208.17,208.01,7.44]
[1758686527991,67.2279,208.16,208.01,7.44]
[1758686528286,8.36658874,208.17,208.01,7.44]
[1758686528487,12.68818874,208.17,208.01,7.44]
[1758686528686,67.1951,208.27,208.03,7.44]
[1758686528687,7.53,208.23,208.03,7.44]
[1758686528985,67.2186,208.19,208.03,7.44]
[1758686529692,71.5471,208.17,208.03,7.44]
[1758686530094,71.5471,208.17,208.04,128.48]
[1758686530490,4.3217,208.17,208.04,128.48]
[1758686531380,7.53,208.19,208.04,128.48]
[1758686531582,7.53,208.19,208.05,7.44]
[1758686532388,79.0727,208.19,208.05,7.44]
[1758686532594,67.2268,208.17,208.05,7.44]
[1758686532791,67.2293,208.16,208.05,7.44]
[1758686533096,4.3219,208.16,208.05,7.44]
[1758686533391,71.55,208.16,208.05,7.44]
[1758686534297,4.3219,208.16,208.05,7.44]
[1758686534892,11.8512,208.19,208.05,7.44]
[1758686535198,7.53,208.19,208.05,7.44]
[1758686535394,67.2285,208.16,208.05,7.44]
[1758686535694,7.53,208.14,208.01,363.64]
[1758686535885,67.2444,208.11,208.0,7.41]
[1758686536089,71.5739,208.09,207.96,127.98]
[1758686536595,67.272,208.03,207.9,128.0]
[1758686536794,67.2844,207.99,207.9,128.0]
[1758686536989,74.8098,208.0,207.84,7.41]
[1758686536990,67.2865,207.98,207.84,7.41]
[1758686537189,7.53,207.97,207.84,135.53]
[1758686538290,3.39727272,208.03,207.84,198.84827272]
[1758686538291,11.8546,208.03,207.84,198.84827272]
[1758686538487,79.1257,208.03,207.85,7.41]
[1758686538690,74.8011,208.03,207.85,7.41]
[1758686539092,4.325,208.01,207.85,7.41]
[1758686539298,71.6016,208.01,207.85,7.41]
[1758686540698,7.53,208.03,207.85,79.0661]
[1758686541190,71.5997,208.02,207.85,11.738]
[1758686541392,67.2775,208.01,207.85,7.41]
[1758686541596,4.3253,207.99,207.85,7.41]
[1758686541791,67.2732,208.02,207.85,7.41]
[1758686541990,7.53,208.03,207.86,7.41]
[1758686542187,71.6053,208.0,207.86,7.41]
[1758686542391,7.53,207.99,207.86,7.41]
[1758686543596,7.53,207.99,207.86,11.7379]
[1758686543798,67.2519,208.09,207.87,67.32]
[1758686543799,3.39727272,208.08,207.87,67.32]
[1758686543997,7.96,208.06,207.9,7.87]
[1758686544203,12.284,208.06,207.91,4.3269]
[1758686546798,7.96,208.12,207.94,7.87]
[1758686547000,7.96,208.12,207.95,127.62]
[1758686547999,4.3228,208.11,207.95,199.2413]
[1758686548199,4.3228,208.11,207.96,7.87]
[1758686548594,7.96,208.08,207.96,7.87]
[1758686549100,12.2835,208.08,207.96,7.87]
[1758686549294,12.2835,208.08,207.94,43.08]
[1758686549295,67.2582,208.07,207.94,43.08]
[1758686549601,75.2206,208.06,207.94,43.08]
[1758686549897,7.96,208.04,207.94,43.08]
[1758686550698,7.96,208.04,207.95,7.87]
[1758686551100,7.96,208.04,207.94,43.08]
[1758686551300,67.2703,208.03,207.89,7.87]
[1758686551699,4.325,208.01,207.89,7.87]
[1758686552099,12.2843,208.04,207.89,7.87]
[1758686552406,7.96,208.04,207.9,7.87]
[1758686553606,7.96,208.04,207.92,7.87]
[1758686553808,7.96,208.09,207.94,7.87]
[1758686554496,7.96,208.09,207.94,12.1962]
[1758686554695,7.96,208.09,207.94,7.87]
[1758686555100,4.3239,208.06,207.94,7.87]
[1758686555300,7.96,208.05,207.94,7.87]
[1758686555500,7.96,208.05,207.94,110.87]
[1758686556501,7.96,208.1,207.96,4.3258]
[1758686557212,12.2832,208.1,207.96,4.3258]
[1758686558312,4.3235,208.08,207.96,4.3258]
[1758686558811,7.96,208.1,207.94,110.87]
[1758686558812,7.96,208.1,207.97,7.87]
[1758686559207,67.2506,208.09,207.97,7.87]
[1758686559411,7.96,208.06,207.94,103.0]
[1758686561013,4.3241,208.05,207.94,103.0]
[1758686561910,7.96,208.06,207.96,7.87]
[1758686562214,7.96,208.11,207.96,7.87]
[1758686562514,7.96,208.17,208.0,7.87]
[1758686563013,67.2288,208.16,208.0,7.87]
[1758686563214,7.96,208.14,208.0,7.87]
[1758686563608,4.3224,208.13,208.0,7.87]
[1758686564313,4.3228,208.11,208.0,7.87]
[1758686564510,7.96,208.14,208.01,4.3248]
[1758686564712,7.96,208.14,208.0,7.87]
[1758686565021,7.96,208.14,208.04,7.87]
[1758686565209,4.06542166,208.2,208.04,7.87]
[1758686565210,7.96,208.19,208.05,7.87]
[1758686566109,75.1611,208.25,208.09,7.87]
[1758686566515,0.83632737,208.24,208.09,7.87]
[1758686567118,4.3204,208.23,208.11,4.3228]
[1758686567320,0.83632737,208.24,208.11,4.3228]
[1758686567514,7.96,208.25,208.11,4.3228]
[1758686568112,7.96,208.25,208.12,7.87]
[1758686568916,4.3202,208.24,208.12,7.87]
[1758686569714,4.3206,208.22,208.12,7.87]
[1758686570108,7.96,208.25,208.12,7.87]
[1758686570417,4.3204,208.23,208.12,7.87]
[1758686570617,7.96,208.25,208.12,7.87]
[1758686570818,7.96,208.25,208.14,4.3221]
[1758686571215,7.96,208.25,208.12,7.87]
[1758686572113,4.3202,208.24,208.13,4.3224]
[1758686572319,75.1407,208.31,208.14,7.87]
[1758686572722,0.83599587,208.3,208.14,7.87]
[1758686572919,4.3193,208.28,208.15,4.3218]
[1758686573921,4.3193,208.28,208.16,7.32]
[1758686574123,4.3193,208.28,208.17,4.3215]
[1758686574321,4.3193,208.28,208.16,7.32]
[1758686574723,4.3193,208.28,208.16,11.6417]
[1758686575118,0.83599587,208.3,208.16,11.6417]
[1758686575318,0.83599587,208.3,208.19,7.32]
[1758686575720,12.2788,208.31,208.19,7.32]
[1758686576724,12.2788,208.31,208.2,4.3209]
[1758686576725,7.96,208.31,208.2,4.3209]
[1758686577115,0.64219629,208.32,208.2,4.3209]
[1758686577320,12.0175,208.37,208.22,7.32]
[1758686578113,12.0175,208.37,208.26,4.3196]
[1758686578316,7.7,208.37,208.26,4.3196]
[1758686578515,7.7,208.37,208.25,7.32]
[1758686578920,7.7,208.37,208.25,133.16]
[1758686579122,4.3169,208.4,208.29,7.32]
[1758686579328,0.8355944,208.41,208.29,7.32]
[1758686579824,4.3167,208.41,208.29,7.32]
[1758686581230,4.3167,208.41,208.24,7.32]
[1758686581231,7.7,208.39,208.24,7.32]
[1758686581521,7.7,208.35,208.19,7.32]
[1758686581722,7.7,208.35,208.24,7.32]
[1758686582319,7.7,208.35,208.25,4.3198]
[1758686583119,7.7,208.35,208.24,7.32]
[1758686583328,67.1712,208.34,208.19,7.32]
[1758686583532,7.7,208.33,208.19,7.32]
[1758686583728,132.4916,208.4,208.21,74.5308]
[1758686583931,67.1707,208.34,208.21,7.32]
[1758686584131,67.1811,208.31,208.16,98.04]
[1758686584328,67.1832,208.3,208.16,98.04]
[1758686584627,67.1764,208.32,208.09,133.24]
[1758686584628,7.7,208.22,208.09,133.24]
[1758686584829,67.2214,208.18,208.04,7.32]
[1758686585128,67.2315,208.15,208.01,363.06]
[1758686585333,4.3226,208.12,208.01,363.06]
[1758686586232,7.7,208.09,208.01,363.06]
[1758686586432,7.7,208.09,207.97,126.1]
[1758686586822,7.7,208.09,207.97,193.3889]
[1758686587022,7.7,208.09,207.97,193.3884]
[1758686587225,72.56840434,208.17,207.97,193.3884]
[1758686587226,7.7,208.16,208.03,67.2695]
[1758686587434,7.7,208.16,208.03,74.5895]
[1758686587728,7.7,208.16,208.03,7.32]
[1758686588528,7.7,208.24,208.08,7.32]
[1758686588732,7.7,208.24,208.08,74.5723]
[1758686588930,7.7,208.24,208.08,7.32]
[1758686589233,7.7,208.24,208.1,4.3229]
[1758686590636,7.7,208.24,208.1,71.57]
[1758686590932,7.7,208.24,208.14,67.2339]
[1758686591136,7.7,208.31,208.15,67.2288]
[1758686591632,7.7,208.31,208.18,4.3212]
[1758686591829,7.7,208.31,208.18,71.5418]
[1758686592226,7.7,208.31,208.18,4.3212]
[1758686593039,7.7,208.31,208.2,67.2143]
[1758686594032,67.2547,208.08,207.91,7.34]
[1758686594233,67.238,208.13,207.91,7.34]
[1758686594234,7.82,208.07,207.91,7.34]
[1758686594435,5.34310434,208.11,207.92,50.24]
[1758686594628,7.82,208.15,207.95,7.34]
[1758686594934,7.82,208.15,207.94,67.298]
[1758686594935,7.82,208.15,207.97,7.34]
[1758686595138,4.3225,208.13,207.97,7.34]
[1758686595327,7.82,208.15,207.99,74.6228]
[1758686595525,7.82,208.21,208.01,67.2754]
[1758686595732,67.2283,208.16,208.04,7.34]
[1758686596038,67.235,208.14,208.0,133.26]
[1758686596231,4.323,208.1,207.98,7.34]
[1758686596538,4.323,208.1,207.99,133.26]
[1758686597529,4.323,208.1,207.98,7.34]
[1758686597937,71.5782,208.08,207.98,7.34]
[1758686598138,67.2546,208.08,207.98,7.34]
[1758686598339,67.2575,208.07,207.98,7.34]
[1758686598836,67.261,208.06,207.98,7.34]
[1758686599041,67.2441,208.11,207.98,7.34]
[1758686599242,67.2478,208.1,207.98,7.34]
[1758686599433,67.2611,208.06,207.98,7.34]
[1758686599634,67.2634,208.05,207.98,7.34]
[1758686599832,67.2634,208.05,207.92,133.02]
[1758686600038,71.588,208.05,207.93,7.34]
[1758686600435,4.3246,208.03,207.93,7.34]
[1758686600637,67.2706,208.03,207.93,7.34]
[1758686600837,67.2746,208.02,207.93,7.34]
[1758686601038,67.2864,207.98,207.87,370.52]
[1758686601238,4.3261,207.96,207.87,370.52]
[1758686601935,71.6191,207.96,207.87,363.18]
[1758686603240,71.6268,207.94,207.83,132.92]
[1758686604047,4.3265,207.94,207.83,132.92]
[1758686604345,7.82,207.98,207.84,67.3313]
[1758686604547,7.82,207.98,207.85,7.55]
[1758686604739,75.1064,207.98,207.85,7.55]
[1758686605844,4.3257,207.97,207.85,7.55]
[1758686606142,67.295,207.96,207.83,132.92]
[1758686606349,7.82,207.98,207.84,7.55]
[1758686606641,67.2899,207.97,207.84,7.55]
[1758686606851,75.1069,207.98,207.84,7.55]
[1758686606852,4.3263,207.94,207.84,140.11]
[1758686607044,71.6259,207.94,207.84,132.56]
[1758686607440,4.3269,207.92,207.84,132.56]
[1758686607843,71.6329,207.92,207.79,7.55]
[1758686608044,12.0861,207.95,207.8,132.48]
[1758686608944,12.0861,207.95,207.81,7.55]
[1758686609351,79.3825,207.95,207.81,7.55]
[1758686609646,67.3057,207.92,207.81,7.55]
[1758686610647,67.3057,207.92,207.75,11.8802]
[1758686610848,67.3057,207.92,207.75,7.55]
[1758686610849,67.3284,207.85,207.75,7.55]
[1758686611051,75.0816,207.87,207.75,7.55]
[1758686611246,75.0816,207.87,207.7,99.65]
[1758686611247,71.6638,207.83,207.7,99.65]
[1758686611450,4.3288,207.83,207.7,99.65]
[1758686612450,67.3315,207.84,207.7,99.65]
[1758686612652,67.3379,207.82,207.7,99.65]
[1758686612852,67.3379,207.82,207.7,139.75]
[1758686613053,4.3289,207.82,207.7,139.75]
[1758686614062,4.3294,207.8,207.7,139.75]
[1758686614459,7.76,207.83,207.7,139.75]
[1758686614659,4.3289,207.82,207.7,139.75]
[1758686615657,75.0953,207.83,207.7,139.75]
[1758686615658,7.76,207.83,207.7,207.1254]
[1758686615956,4.3283,207.85,207.71,7.55]
[1758686616158,4.3283,207.85,207.72,4.3307]
[1758686616454,4.3276,207.88,207.73,7.55]
[1758686616859,4.3276,207.88,207.74,7.55]
[1758686617455,4.3281,207.86,207.74,7.55]
[1758686619857,12.0874,207.89,207.76,7.55]
[1758686620862,12.0874,207.89,207.77,4.3298]
[1758686621064,12.0874,207.89,207.79,7.55]
[1758686621367,67.3189,207.88,207.79,7.55]
[1758686621554,67.322,207.87,207.74,138.87]
[1758686621967,4.3282,207.85,207.74,138.87]
[1758686622263,67.3295,207.85,207.74,138.87]
[1758686622460,4.3288,207.83,207.74,7.55]
[1758686622654,4.3288,207.83,207.61,67.4041]
[1758686622655,28.84,207.74,207.32,7.9340136]
[1758686622865,10.68620868,207.46,207.25,67.5226]
[1758686623057,10.68620868,207.46,207.1,4.87175549]
[1758686623058,67.4692,207.42,207.16,67.5499]
[1758686623256,67.4655,207.43,207.16,67.5499]
[1758686623257,5.34310434,207.26,207.16,2.88]
[1758686623453,5.34310434,207.26,207.1,1.88774189]
[1758686623659,72.86400434,207.26,207.1,1.88774189]
[1758686623855,67.5331,207.22,207.0,2.1]
[1758686624061,67.5682,207.11,207.0,2.1]
[1758686624255,67.5682,207.11,206.8,67.6673]
[1758686624256,72.92570434,207.07,206.8,67.6673]
[1758686624464,72.92570434,207.07,206.72,5.34310434]
[1758686624465,67.6175,206.96,206.69,7.55]
[1758686624663,67.5956,207.03,206.64,67.7217]
[1758686624664,67.6428,206.89,206.64,7.55]
[1758686624863,67.6638,206.82,206.63,14.5047774]
[1758686625062,73.02760434,206.76,206.37,75.77]
[1758686625262,363.88,206.75,206.39,67.8033]
[1758686625464,5.34310434,206.73,206.45,67.7839]
[1758686625662,5.34310434,206.78,206.47,7.55]
[1758686625869,5.34310434,206.73,206.46,166.84]
[1758686626161,5.34310434,206.73,206.45,67.7837]
[1758686626162,488.06,206.72,206.45,67.7837]
[1758686626472,5.34310434,206.66,206.35,7.55]
[1758686626663,8.86932872,206.68,206.37,67.8084]
[1758686626862,67.7003,206.71,206.29,7.55]
[1758686626863,8.86932872,206.6,206.29,7.55]
[1758686627064,8.86932872,206.6,206.29,75.3855]
[1758686627258,8.86932872,206.67,206.41,67.7967]
[1758686627463,8.86932872,206.67,206.51,7.55]
[1758686627760,8.86932872,206.6,206.34,7.55]
[1758686627971,67.682,206.77,206.34,7.55]
[1758686627972,14.58945242,206.82,206.56,7.55]
[1758686628265,8.86932872,206.85,206.54,7.55]
[1758686628468,8.86932872,206.8,206.42,8.86932872]
[1758686628665,79.2183479,206.83,206.55,67.7504]
[1758686628666,272.3383479,206.83,206.55,67.7504]
[1758686628866,272.3383479,206.83,206.29,67.8365]
[1758686628867,67.7215,206.65,206.29,67.8365]
[1758686629063,203.0612,206.75,206.23,67.8548]
[1758686629064,76.56412872,206.73,206.37,67.8105]
[1758686629267,76.56412872,206.73,206.33,67.8227]
[1758686629268,76.54082872,206.8,206.47,67.7763]
[1758686629571,432.2525,206.86,206.63,35.03941971]
[1758686629572,76.52182872,206.86,206.63,35.03941971]
[1758686629868,4.348,206.91,206.55,67.7509]
[1758686629869,67.6409,206.89,206.55,67.7509]
[1758686630070,67.6473,206.87,206.55,67.7504]
[1758686630365,14.46406927,206.83,206.6,7.55]
[1758686630560,67.6709,206.8,206.51,8.86932872]
[1758686630767,195.4,206.82,206.53,67.7563]
[1758686631062,195.48,206.92,206.64,7.55]
[1758686631269,364.8,206.96,206.67,67.7105]
[1758686631568,195.36,207.05,206.84,35.03941971]
[1758686631869,67.6318,206.92,206.65,7.55]
[1758686632063,202.7576,207.06,206.72,7.55]
[1758686632064,15.03747853,207.02,206.72,7.55]
[1758686632265,0.5359898,207.02,206.79,7.55]
[1758686632570,0.5359898,207.02,206.72,204.68932872]
[1758686632571,67.6244,206.94,206.7,7.55]
[1758686632769,195.88,206.96,206.72,67.6948]
[1758686632972,195.88,206.96,206.82,35.03941971]
[1758686633166,210.86279901,207.02,206.75,7.55]
[1758686633472,15.02279901,207.02,206.81,7.78]
[1758686633861,15.02279901,207.02,206.91,35.03941971]
[1758686634062,0.5359898,207.02,206.85,7.78]
[1758686634363,0.5359898,207.02,206.86,67.6497]
[1758686634571,0.5359898,207.02,206.9,67.6367]
[1758686634867,0.5359898,207.02,207.01,35.03941971]
[1758686635065,0.5359898,207.02,206.89,7.78]
[1758686635465,68.1344898,207.02,206.82,7.78]
[1758686635675,68.1344898,207.02,206.38,8.7179]
[1758686635676,67.6517,206.86,206.5,67.7669]
[1758686635864,8.86932872,206.87,206.62,67.7282]
[1758686636062,8.86932872,206.87,206.6,75.5148]
[1758686636063,124.0,206.87,206.66,7.78]
[1758686636263,124.0,206.87,206.67,67.712]
[1758686636470,365.14,206.92,206.69,67.7052]
[1758686636670,365.14,206.92,206.72,7.78]
[1758686636972,365.14,206.92,206.81,35.03941971]
[1758686637266,67.6372,206.9,206.72,7.78]
[1758686637472,14.43,206.85,206.61,7.78]
[1758686637670,8.86932872,206.88,206.64,67.7219]